Cogmind - Beta 12 @@@ ROGUE MODE // 2023.03.09 @ 09:33:31 Player: art-hropod Result: Self-destructed Performance ------------- Evolutions (2) 1000 Regions Visited (5) 1000 Robots Destroyed (27) 135 Value Destroyed (598) 598 Prototype IDs (1) 20 Alien Tech Used (0) 0 Bonus (300) 300 TOTAL SCORE: 3053 Bonus ------- Aligned with FarCom 300 Cogmind --------- Core Integrity 367/550 Matter 300/300 Energy 64/100 System Corruption 0% Temperature Cool (0) Movement Core (250) Ox4 Location -8/Materials Parts ------- > --- POWER (2) -------- (None) > --- PROPULSION (4) --- (None) > --- UTILITY (3) ------ Medium Storage Unit Improved Signal Interpreter > --- WEAPON (2) ------- Heavy Hammer > --- INVENTORY (10) --- Flight Unit Flight Unit Flight Unit Flight Unit Large Matter Pod (150) Improved Sensor Array Improved Terrain Scanner Cloak of Protection Rocket Launcher Peak State ------------ > --- POWER ------------ Light Ion Engine > --- PROPULSION ------- Aluminum Leg Aluminum Leg Aluminum Leg > --- UTILITY ---------- Improved Heat Sink Medium Storage Unit Improved Signal Interpreter > --- WEAPON ----------- EM Shotgun Heavy Hammer > --- INVENTORY -------- Flight Unit Flight Unit Flight Unit Flight Unit Large Matter Pod Improved Sensor Array Improved Terrain Scanner Cloak of Protection Rocket Launcher [Rating: 17] Favorites ----------- Power Light Ion Engine Engine Light Ion Engine Propulsion Aluminum Leg Leg Aluminum Leg Utility Medium Storage Unit Device Improved Heat Sink Storage Medium Storage Unit Processor Signal Interpreter Weapon Advanced Beam Cannon Energy Gun EM Shotgun Energy Cannon Advanced Beam Cannon Launcher EMP Blaster Impact Weapon Heavy Hammer Build | -11 -10 -10 -10 -9 -8 ------- Run | Jun Mat Min Exi Min Mat Slots Evolved 4 | . . . . . 4 Power 1 | . . . . . 1 Propulsion 2 | . . . . . 2 Utility 1 | . . . . . 1 Weapon . | . . . . . . Parts Attached 28 | 6 14 1 3 . 4 Power 3 | 1 2 . . . . Engine 3 | 1 2 . . . . Core . | . . . . . . Reactor . | . . . . . . Propulsion 7 | 2 3 . 1 . 1 Treads . | . . . . . . Leg 7 | 2 3 . 1 . 1 Wheel . | . . . . . . Hover . | . . . . . . Flight . | . . . . . . Utility 6 | 1 3 . . . 2 Device 1 | . . . . . 1 Storage 3 | 1 2 . . . . Processor 2 | . 1 . . . 1 Hackware . | . . . . . . Protection . | . . . . . . Artifact . | . . . . . . Weapon 12 | 2 6 1 2 . 1 Energy Gun 3 | 2 . . . . 1 Energy Cannon 5 | . 4 . 1 . . Ballistic Gun . | . . . . . . Ballistic Cannon . | . . . . . . Launcher 2 | . 1 . 1 . . Special Weapon . | . . . . . . Impact Weapon 2 | . 1 1 . . . Slashing Weapon . | . . . . . . Piercing Weapon . | . . . . . . Special Melee Weapon . | . . . . . . Unidentified Prototypes 1 | . 1 . . . . Parts Lost 9 | . 3 . . . 6 Power 2 | . 1 . . . 1 Propulsion 4 | . 1 . . . 3 Utility 1 | . . . . . 1 Weapon 2 | . 1 . . . 1 Highest Loss Streak 6 | . 3 . . . 6 To Critical Strikes . | . . . . . . Average Slot Usage (%) 91 | . 87 100 100 100 75 Engine 13 | . 14 14 14 14 7 Leg 27 | . 27 28 28 28 25 Device 1 | . . . . . 7 Storage 13 | . 14 14 14 14 9 Processor 10 | . 6 14 14 14 9 Energy Gun 1 | . . . . . 6 Energy Cannon 14 | . 19 14 13 14 1 Impact Weapon 8 | . 2 14 14 14 9 Naked Turns . | . . . . . . Heaviest Build 21 | 12 21 20 20 20 21 Greatest Support 30 | 20 20 20 20 20 30 Greatest Overweight (x) 4 | . 1 . . . 4 Average Overweight (x) . | . . . . . . Largest Inventory Capacity 10 | 8 10 10 10 10 10 Average Capacity 9 | 6 8 10 10 10 10 Most Carried 10 | 2 10 10 10 10 10 Average Carried 8 | . 8 9 9 10 8 Final Capacity 10 | 8 10 10 10 10 10 Final Carried 10 | 2 10 10 10 10 9 Class Distribution -------------------- 88% | Mutant 11% | Scavenger-Mutant Dominant Class ---------------- Mutant | -10/Materials Mutant | -10/Mines Mutant | -10/Exiles Mutant | -9/Mines Scavenger-Mutant | -8/Materials Resources | -11 -10 -10 -10 -9 -8 ----------- Run | Jun Mat Min Exi Min Mat Matter Collected 632 | 237 320 10 . . 65 Remotely . | . . . . . . Salvage Created 899 | . 618 83 . . 198 Parts 55 | . 44 3 . . 8 Haulers Intercepted 2 | . 2 . . . . Recyclers Shooed . | . . . . . . Parts Field Recycled . | . . . . . . Retrieved Matter . | . . . . . . Parts Self-Destructed . | . . . . . . Prevented . | . . . . . . Kills | -11 -10 -10 -10 -9 -8 ------- Run | Jun Mat Min Exi Min Mat Combat Hostiles Destroyed 17 | . 12 2 . . 3 Melee 3 | . 2 . . . 1 Guns 2 | . . . . . 2 Cannons 11 | . 9 2 . . . Classes Destroyed 10 | . 7 . . . 3 Worker 2 | . 2 . . . . Tunneler 1 | . . . . . 1 Hauler 2 | . 2 . . . . Recycler 1 | . 1 . . . . Operator 2 | . 2 . . . . Watcher 2 | . 2 . . . . Swarmer 6 | . 6 . . . . Grunt 9 | . 6 2 . . 1 Sentry 1 | . . . . . 1 Hunter 1 | . . . . . 1 Best Kill Streak 8 | . 8 2 . . 3 Combat Bots Only 5 | . 5 2 . . 3 Max Kills in Single Turn 2 | . 2 1 . . 1 Gunslinging . | . . . . . . Exploded . | . . . . . . Melee 1 | . 1 . . . 1 Uniques/NPCs Destroyed . | . . . . . . Combat | -11 -10 -10 -10 -9 -8 -------- Run | Jun Mat Min Exi Min Mat Damage Taken 1352 | . 574 129 . . 649 Core 313 | . 90 40 . . 183 Absorbed by Shields . | . . . . . . Core Remaining (%) 74 | 100 . . . 48 . Volleys Fired 56 | . 33 7 . . 16 Largest 2 | . 2 1 . . 1 Hottest 136 | . 136 68 . . 68 Shots Fired 78 | . 55 7 . . 16 Gun 14 | . . . . . 14 Cannon 61 | . 52 7 . . 2 Launcher 3 | . 3 . . . . Special . | . . . . . . Kinetic . | . . . . . . Thermal 61 | . 52 7 . . 2 Explosive . | . . . . . . Electromagnetic 17 | . 3 . . . 14 Robot Hit Streak 16 | . 7 13 . . 16 Robot Miss Streak 2 | . 2 . . . 2 Penetration Max . | . . . . . . Secondary Targets . | . . . . . . Shots Hit Robots 63 | . 39 7 . . 17 Core Hits 30 | . 19 3 . . 8 Critical Kills 3 | . 3 . . . . Critical Parts Destroyed 1 | . 1 . . . . Critical Strikes 4 | . 4 . . . . Meltdown 2 | . 2 . . . . Smash 2 | . 2 . . . . Melee Attacks 9 | . 5 . . . 4 Impact 9 | . 5 . . . 4 Slashing . | . . . . . . Piercing . | . . . . . . Sneak Attacks . | . . . . . . Combat Hostiles . | . . . . . . Follow-up Attacks . | . . . . . . Damage Inflicted 1539 | . 975 145 . . 419 Guns 193 | . . . . . 193 Cannons 843 | . 698 145 . . . Explosions 60 | . 60 . . . . Melee 443 | . 217 . . . 226 Ramming . | . . . . . . Kinetic . | . . . . . . Thermal 843 | . 698 145 . . . Explosive . | . . . . . . Electromagnetic 253 | . 60 . . . 193 Impact 443 | . 217 . . . 226 Slashing . | . . . . . . Piercing . | . . . . . . Highest Corruption . | . . . . . . Average Corruption . | . . . . . . Corruption Purged . | . . . . . . Corruption Blocked . | . . . . . . Overload Shots . | . . . . . . Overflow Damage 46 | . 39 . . . 7 Projectiles 1 | . 1 . . . . Explosions . | . . . . . . Melee 45 | . 38 . . . 7 Knockbacks 2 | . 1 . . . 1 Impact 2 | . 1 . . . 1 Kinetic . | . . . . . . Secondary . | . . . . . . Self-Inflicted Damage . | . . . . . . Shots . | . . . . . . Rammed . | . . . . . . Targets Rammed . | . . . . . . Kicked . | . . . . . . Crushed . | . . . . . . Highest Temperature 527 | . 527 248 . . 32 Average Temperature 122 | . 126 122 . . 14 Received Heat Transfer 528 | . 240 72 . . 216 Effects 11 | . 8 3 . . . Shutdowns 2 | . 2 . . . . Energy Bleed 2 | . 2 . . . . Interference 6 | . 3 3 . . . Damage (minor) 1 | . 1 . . . . Siege Activations . | . . . . . . Robots Corrupted . | . . . . . . Combat Hostiles . | . . . . . . Parts Fried 3 | . . . . . 3 Impact Corruptions 2 | . 1 . . . 1 Robots Melted 2 | . 2 . . . . Combat Hostiles 1 | . 1 . . . . Parts Melted 4 | . 4 . . . . Heat Transferred 1517 | . 1258 259 . . . Parts Sabotaged . | . . . . . . Parts Stolen . | . . . . . . Parts Stripped . | . . . . . . Power Chain Reactions . | . . . . . . Missiles Intercepted . | . . . . . . Alert | -11 -10 -10 -10 -9 -8 ------- Run | Jun Mat Min Exi Min Mat Peak Influence 301 | . 301 116 . . 110 Initial 66 | . . 66 . . . Average 78 | . 136 104 . . 39 Maximum Alert Level 1 | . 1 . . . . Low Security (%) 93 | 100 86 100 . 100 100 Level 1 6 | . 13 . . . . Level 2 . | . . . . . . Level 3 . | . . . . . . Level 4 . | . . . . . . Level 5 . | . . . . . . High Security . | . . . . . . Max Security . | . . . . . . Squads Dispatched 4 | . 3 . . . 1 Investigation 1 | . 1 . . . . Extermination . | . . . . . . Reinforcement 3 | . 2 . . . 1 Assault . | . . . . . . Garrison . | . . . . . . Intercept . | . . . . . . Searches Triggered . | . . . . . . Construction Impeded . | . . . . . . Haulers Reinforced . | . . . . . . Active Scanning Responses . | . . . . . . Cargo Convoy Interrupts . | . . . . . . Stealth | -11 -10 -10 -10 -9 -8 --------- Run | Jun Mat Min Exi Min Mat Distress Signals 3 | . . . . . 3 Communications Jammed . | . . . . . . Distress Signals . | . . . . . . Times Spotted 31 | . 17 2 . . 12 Peak Tracking Total 7 | . 6 2 . . 7 Tactical Retreats . | . . . . . . Traps | -11 -10 -10 -10 -9 -8 ------- Run | Jun Mat Min Exi Min Mat Traps Triggered 1 | . 1 . . . . Indirectly . | . . . . . . Trap Hack Attempts . | . . . . . . Triggered . | . . . . . . Disarmed . | . . . . . . Reprogrammed . | . . . . . . Reused . | . . . . . . Traps Extracted . | . . . . . . Installed . | . . . . . . Triggered . | . . . . . . Machines | -11 -10 -10 -10 -9 -8 ---------- Run | Jun Mat Min Exi Min Mat Machines Disabled 1 | . . . . . 1 Max in Single Turn 1 | . . . . . 1 Machines Repaired . | . . . . . . Machines Sabotaged . | . . . . . . Overloaded Fab Kills . | . . . . . . Hacking | -11 -10 -10 -10 -9 -8 --------- Run | Jun Mat Min Exi Min Mat Machines Accessed 3 | . 2 1 . . . Terminals 3 | . 2 1 . . . Fabricators . | . . . . . . Repair Stations . | . . . . . . Recycling Units . | . . . . . . Scanalyzers . | . . . . . . Garrison Access . | . . . . . . Total Hacks 4 | . 3 1 . . . Successful 1 | . 1 . . . . Failed 3 | . 2 1 . . . Catastrophic 2 | . 2 . . . . Database Lockouts . | . . . . . . Manual 5 | . 3 1 1 . . Terminals 4 | . 3 1 . . . Fabricators . | . . . . . . Repair Stations . | . . . . . . Recycling Units . | . . . . . . Scanalyzers . | . . . . . . Garrison Access . | . . . . . . Terminal Hacks . | . . . . . . Fabricator Hacks . | . . . . . . Repair Station Hacks . | . . . . . . Recycling Unit Hacks . | . . . . . . Scanalyzer . | . . . . . . Garrison Access Hacks . | . . . . . . Unauthorized Hacks 1 | . 1 . . . . Terminals 1 | . 1 . . . . Operators 1 | . 1 . . . . Fabricators . | . . . . . . Repair Stations . | . . . . . . Recycling Units . | . . . . . . Scanalyzers . | . . . . . . Garrison Access . | . . . . . . Data Cores Recovered . | . . . . . . Used . | . . . . . . Hacking Detections 3 | . 2 1 . . . Full Trace Events . | . . . . . . Feedback Events . | . . . . . . Feedback Blocked . | . . . . . . Robot Schematics Acquired . | . . . . . . Robots Built . | . . . . . . Authchips . | . . . . . . Time . | . . . . . . Total Robot Build Rating . | . . . . . . Part Schematics Acquired . | . . . . . . Parts Built . | . . . . . . Authchips . | . . . . . . Time . | . . . . . . Total Part Build Rating . | . . . . . . Parts Repaired . | . . . . . . Time . | . . . . . . Parts Recycled . | . . . . . . Recycled Matter . | . . . . . . Retrieved Matter . | . . . . . . Retrieved Components . | . . . . . . Parts Scanalyzed . | . . . . . . Part Schematics Acquired . | . . . . . . Parts Damaged . | . . . . . . Bothacking | -11 -10 -10 -10 -9 -8 ------------ Run | Jun Mat Min Exi Min Mat Used RIF Installer . | . . . . . . Robots Hacked . | . . . . . . Non-combat . | . . . . . . Combat . | . . . . . . Robot Hacks Applied . | . . . . . . Relay Couplers Released . | . . . . . . Fabnet Peak Effective % . | . . . . . . Robots Rewired . | . . . . . . Allies Hacked . | . . . . . . Hacks Repelled . | . . . . . . Allies | -11 -10 -10 -10 -9 -8 -------- Run | Jun Mat Min Exi Min Mat Total Allies . | . . . . . . Largest Group . | . . . . . . Highest-Rated Group . | . . . . . . Highest-Rated Ally . | . . . . . . Total Orders . | . . . . . . Ally Attacks . | . . . . . . Total Damage . | . . . . . . Kills . | . . . . . . Allies Corrupted . | . . . . . . Allies Melted . | . . . . . . Intel | -11 -10 -10 -10 -9 -8 ------- Run | Jun Mat Min Exi Min Mat Robot Analysis Total . | . . . . . . Derelict Logs Recovered . | . . . . . . Drone Launches . | . . . . . . Drone Recoveries . | . . . . . . Exploration | -11 -10 -10 -10 -9 -8 ------------- Run | Jun Mat Min Exi Min Mat Turns Passed 1726 | 65 716 51 304 361 229 Spaces Moved 1210 | 47 447 30 248 300 138 Core 7 | 6 . . . . 1 Treads . | . . . . . . Legs 1203 | 41 447 30 248 300 137 Wheels . | . . . . . . Hover . | . . . . . . Flight . | . . . . . . Fastest Speed 50 | 50 120 120 120 120 120 Average Speed 121 | 111 123 120 120 120 121 Slowest Speed 250 | 120 190 120 120 120 250 Overloaded Moves . | . . . . . . Propulsion Burnouts . | . . . . . . Robots Hopped . | . . . . . . Cave-ins Triggered . | . . . . . . Exploration Rate (%) 39 | 3 72 6 65 72 21 Regions Visited 5 Branch Regions 3 Pre-discovered Areas . | . . . . . . Known Exits Taken 3 | . 1 . 1 1 . Unknown Exits Taken 2 | 1 . 1 . . . Scrap Searched . | . . . . . . Spaces Dug . | . . . . . . Terrain Destroyed . | . . . . . . Melee . | . . . . . . Projectile . | . . . . . . AOE . | . . . . . . Terrain Rammed . | . . . . . . Walls Destroyed . | . . . . . . Machines Disabled . | . . . . . . Actions | -11 -10 -10 -10 -9 -8 --------- Run | Jun Mat Min Exi Min Mat Total 1384 | 60 554 38 254 301 177 Wait 22 | . 15 . . . 7 Move 1205 | 46 446 29 247 299 138 Hop . | . . . . . . Pick Up 40 | 8 23 1 2 1 5 Fast Attach 1 | . 1 . . . . Attach 17 | 6 6 1 1 . 3 Detach 2 | . 2 . . . . Swap 10 | . 7 . 2 . 1 Drop 22 | . 16 . 2 1 3 Fire 56 | . 33 7 . . 16 Melee 9 | . 5 . . . 4 Ram . | . . . . . . Kick . | . . . . . . Crush . | . . . . . . Escape Stasis . | . . . . . . Rewire . | . . . . . . Trap . | . . . . . . Miscellaneous . | . . . . . . Route ------- -11/Junkyard -10/Materials (discovered 4 exits: *Mat x2 / *Min x2) -10/Mines -10/Exiles -9/Mines -8/Materials History --------- Turn | Location | Event 4 | -11/Junkyard | Discovered new exit (range 15) 66 | -11/Junkyard | Entered Materials 236 | -10/Materials | Discovered new exit (range 16) 318 | -10/Materials | Build established: Mutant 344 | -10/Materials | Discovered new exit (range 15) 372 | -10/Materials | Discovered new exit (range 11) 459 | -10/Materials | Lost 3 parts (1p1n1w) 542 | -10/Materials | Identified exit to Mines 651 | -10/Materials | Discovered new exit (range 16) 668 | -10/Materials | Identified exit to Materials 782 | -10/Materials | Entered Mines 793 | -10/Mines | Core integrity fell below 50% 828 | -10/Mines | Deemed a non-threat by the Exiles lab entrance 828 | -10/Mines | Discovered new exit (range 5) 833 | -10/Mines | Entered Exiles 865 | -10/Exiles | Met 8R-AWN 886 | -10/Exiles | Met EX-HEX 923 | -10/Exiles | Met EX-BIN 938 | -10/Exiles | Aligned with FarCom system 939 | -10/Exiles | Given EX-Vault access code 969 | -10/Exiles | Opened EX-Vault 986 | -10/Exiles | Found Prototype Device 1034 | -10/Exiles | Warned to stay clear of 0b10 Research branches 1066 | -10/Exiles | Met EX-DEC 1125 | -10/Exiles | Discovered new exit (range 10) 1136 | -10/Exiles | Identified exit to Mines 1137 | -10/Exiles | Left Exiles lab with Cloak of Protection 1137 | -10/Exiles | Entered Mines 1286 | -9/Mines | Received a Rocket Launcher from a helpful Derelict 1487 | -9/Mines | Discovered new exit (range 10) 1497 | -9/Mines | Identified exit to Materials 1498 | -9/Mines | Entered Materials 1498 | -8/Materials | Evolved 4 slots: Power x1, Propulsion x2, Utility x1 1727 | -8/Materials | Self-destructed Last Messages --------------- 01706_ EM Shotgun destroyed. 01709_ Penetrated by Slug. 01711_ K-01 Serf cleans the Electrolysis Chamber. 01711_ R-06 Scavenger collects Corrupted Lgt. Treads. 01712_ Aluminum Leg destroyed. 01714_ Destroyed Lgt. Nuclear Core. 01714_ H-55 Commando system corrupted by crushing effect. 01714_ H-55 Commando knocked back. 01715_ Penetrated by Slug. 01715_ K-01 Serf cleans the Electrolysis Chamber. 01716_ Aluminum Leg destroyed. 01717_ K-01 Serf collects debris. 01718_ Slug penetrates Wall. 01719_ W-25 Informer sends out distress signal. 01721_ Penetrated by Slug. 01722_ Targeting Computer fried. 01722_ H-55 Commando destroyed. 01722_ Critical hit (Burn: +37). 01724_ R-06 Scavenger collects Corrupted Carbon-fiber Leg. 01724_ Aluminum Leg destroyed. Map ----- +----------------------------------------------------+ | ?????????????????????????????????????????????????? | | ?????????????????????????????????????????????????? | | ?????????????????????????????????????????????????? | | ?????????????????????????????????????????????????? | | ?????????????????????????????????????????????????? | | ?????????????????????????????????????????????????? | | ?????????????????????????????????????????????????? | | ?????????????????????????????????????????????????? | | ?????????????????????????????????????????????????? | | ?????????????????????????? ???????????????????? | | ???????????????????????? ???????????????????? | | ???????????????????????" ??????????????????? | | ??????????????????????"" ????????????????? | | ?????????????????????? ????????????????? | | ?????????????????????? a w????#???????????? | | ??????????????????# """ ???? #???????????? | | ??????????????????# ^""" ????? #???????????? | | ??????????????????? """ ???? #???????????? | | ??????????????????# ???? ????????????? | | ???????????w??????# #####/#####?????????? | | ??????????????????# """r # #?????????? | | ??????????????????# """ Y # ] #?????????? | | ??????????????????# """ a Yu# !#?????????? | | ??????????????????# rr # #?????????? | | ????????????"" h # %g% #?????????? | | ?????????????? "" + @ #[ #?????????? | | ?????????????? T" ## ##### # #?????????? | | ???????????????????#???????# # #?????????? | | ???????????????????????????# ###########?????????? | | ???????????????????????#####+#####???????????????? | | ???????????????????????# ! #???????????????? | | ???????????????????????# #???????????????? | | ???????????????????????# #???????????????? | | ???????????????????????# #???????????????? | | ???????????????????????######/####??##???????????? | | ????????????????????????????# #?#### #???????????? | | ??????#####?????????????????# #?# T #???????????? | | ??????# ""???#??########### #?# #???????????? | | ??????# """"" #??# # #?# #???????????? | | ??? # """"" #??# # #?# #???????????? | | ??# # """"" #??# """ # ### !!#???????????? | | ??+ + """ #??# """ + ## !#???????????? | | ??# # #??# " " """ # " #???????????? | | ??# # #??# "R" # ## #???????????? | | ### # #??# """ # ## #???????????? | | # #??# # #####+#???????????? | | ####+############+##### ???????????? | | ""## = = | ???????????? | | T"## ######+#############+#????????????????? | | """ ""?# #?# ! #?????????????????????????? | +----------------------------------------------------+ Best States ------------- Heat Dissipation 45 Energy Generation 10 Energy Capacity 125 Matter Stores 300 Matter Capacity 300 Sight Range 16 Terrain Scan Density 10 Evasion (%) 55 Item Schematics ----------------- None Robot Schematics ------------------ None Fabricated ------------ Nothing Alien Tech Used ----------------- None Achievements -------------- None Challenges ------------ None Game ------ Seed LaserMachineBoomstick Manual? 0 Play Time 00:23:26 Cumulative 37.7 hours Start 2023.03.07 @ 10:02:14 End 2023.03.09 @ 09:33:31 Sessions 9 Manual Loads 0 Difficulty Rogue Special Mode None Game No. 45 Rogue 29 Adventurer 9 Explorer 7 Win Type - Total 3 Types 3/0/0/0/0/0/0/0/0 Lore% 13 Gallery% 32 Achievement% 23 Wizard Run 0 Options --------- ASCII 0 Keyboard 0 Movement Mouse Keybinds 0 Fullscreen 1 Font 32/Terminus Map View 63x52 Tactical HUD 1 Map Filters NONE Filters NONE Steam X RUN: 2c929a4a-d468-47bb-9f5e-6da4b8947a09